Cogmind - Beta 15 @@@ ROGUE MODE // 2025.08.12 @ 11:51:07 Player: winnking222 Result: Destroyed by H-77 Assassin with High-powered Shotgun Performance ------------- Evolutions (6) 3000 Regions Visited (12) 2400 Robots Destroyed (104) 520 Value Destroyed (4975) 4975 Prototype IDs (39) 780 Alien Tech Used (0) 0 Bonus (3221) 3221 TOTAL SCORE: 14896 Bonus ------- High Alert Combat Kills 1547 Follower Combat Kills 1225 Registered with UFD 300 Met Optimus in HQ 500 Friendly Fire -351 Cogmind --------- Core Integrity 0/1150 Matter 261/300 Energy 284/350 System Corruption 17% Temperature Cool (65) Movement Treading (152) Location -4/Upper Caves Parts ------- > --- POWER (2) -------- Reinforced Quantum Reactor > --- PROPULSION (6) --- Improved Medium Treads Advanced Medium Treads > --- UTILITY (8) ------ Advanced Cooling System Enhanced Scrap Shield > --- WEAPON (3) ------- Matter Neutralizer > --- INVENTORY (5) ---- Large Storage Unit Hardened Medium Armor Plating Plasma Lance Peak State ------------ > --- POWER ------------ Reinforced Quantum Reactor Reinforced Quantum Reactor > --- PROPULSION ------- Heavy Treads Heavy Treads Biometal Heavy Treads > --- UTILITY ---------- Improved Cooling System Advanced Quantum Shading Machine Experimental Optical Array Core Analyzer Damper Plating > --- WEAPON ----------- Coil Gun Coil Gun Coil Gun > --- INVENTORY -------- Antimatter Reactor Hardened Light Armor Plating Gamma Bomb Array Makeshift Axe [Rating: 127] Favorites ----------- Power Light Deuterium Engine Engine Light Deuterium Engine Reactor Reinforced Quantum Reactor Propulsion Light Treads Treads Light Treads Leg Myomer Leg Wheel Wheel Hover Unit Backup Propulsion III Flight Unit Improved Surge Thruster Utility Large Storage Unit Device Improved Cooling System Storage Large Storage Unit Processor Core Analyzer Hackware Hacking Suite Protection Hardened Medium Armor Plating Weapon Battle Rifle Energy Gun Small Laser Energy Cannon Subdweller Beam Cannon Ballistic Gun Battle Rifle Launcher Gamma Bomb Array Slashing Weapon Makeshift Axe Piercing Weapon Plasma Lance Build | -11 -10 -10 -8 -8 -6 -5 -5 -5 -4 -4 -4 -4 ------- Run | Yrd Mat Sub Rec Scr Fac Fac Was Fac Fac Was Fac Upp Slots Evolved 12 | . . . . . 8 2 . . 2 . . . Power 1 | . . . . . . . . . 1 . . . Propulsion 4 | . . . . . 2 1 . . 1 . . . Utility 6 | . . . . . 5 1 . . . . . . Weapon 1 | . . . . . 1 . . . . . . . Parts Attached 121 | 7 6 15 4 2 18 3 . 2 26 20 15 3 Power 16 | 1 1 3 1 . 2 . . . 2 4 2 . Engine 8 | 1 1 3 1 . 2 . . . . . . . Core . | . . . . . . . . . . . . . Reactor 8 | . . . . . . . . . 2 4 2 . Propulsion 29 | 2 . 3 2 . 4 . . . 9 4 4 1 Treads 11 | 2 . . 2 . . . . . . 3 3 1 Leg 9 | . . . . . . . . . 7 1 1 . Wheel 3 | . . 3 . . . . . . . . . . Hover 2 | . . . . . . . . . 2 . . . Flight 4 | . . . . . 4 . . . . . . . Utility 46 | 2 1 3 1 2 10 3 . 1 10 7 5 1 Device 16 | 1 . 2 . . 3 1 . . 2 3 4 . Storage 5 | 1 1 . . 1 1 . . . . . 1 . Processor 11 | . . . . . 6 1 . . 4 . . . Hackware 1 | . . . . . . . . 1 . . . . Protection 13 | . . 1 1 1 . 1 . . 4 4 . 1 Artifact . | . . . . . . . . . . . . . Weapon 30 | 2 4 6 . . 2 . . 1 5 5 4 1 Energy Gun 3 | 2 . . . . . . . . . . . 1 Energy Cannon 7 | . . 1 . . . . . . 3 1 2 . Ballistic Gun 16 | . 4 5 . . . . . 1 2 3 1 . Ballistic Cannon . | . . . . . . . . . . . . . Launcher 2 | . . . . . 1 . . . . 1 . . Special Weapon . | . . . . . . . . . . . . . Impact Weapon . | . . . . . . . . . . . . . Slashing Weapon 1 | . . . . . 1 . . . . . . . Piercing Weapon 1 | . . . . . . . . . . . 1 . Special Melee Weapon . | . . . . . . . . . . . . . Unidentified Prototypes 10 | . . . . . 1 . . 1 2 2 3 1 Parts Lost 51 | . 4 4 . . 6 2 . 2 15 . 17 1 Power 6 | . 1 1 . . 1 . . . 2 . 1 . Propulsion 16 | . . 1 . . . 1 . 1 7 . 6 . Utility 16 | . . 2 . . 3 1 . 1 3 . 6 . Weapon 13 | . 3 . . . 2 . . . 3 . 4 1 Highest Loss Streak 12 | . 2 4 . . 4 1 . 2 12 . 8 1 To Critical Strikes 1 | . . . . . . 1 . . . . . . Average Backups 7 | 3 7 9 10 10 7 6 5 4 4 4 4 3 Power . | . 1 . 1 1 . . . . . . . . Propulsion 1 | . 1 1 2 1 2 1 2 1 . . . . Utility 1 | 1 2 2 2 2 2 2 2 1 . . . 2 Weapon 3 | 1 2 4 5 4 1 1 1 1 3 3 2 1 Tool/Special . | . . . . . . . . . . . . . Unused Backups 16 | . 1 3 . 1 2 3 . . 3 2 . 1 Power . | . . . . . . . . . . . . . Propulsion 1 | . . . . . . 1 . . . . . . Utility 6 | . . 3 . . . 1 . . 1 . . 1 Weapon 8 | . 1 . . 1 1 1 . . 2 2 . . Tool/Special 1 | . . . . . 1 . . . . . . . Average Slot Usage (%) 81 | . 99 99 99 100 58 44 17 16 64 65 50 26 Engine 9 | . 14 13 14 14 5 1 . . . 5 . . Reactor 1 | . . . . . . . . . 5 4 8 5 Treads 17 | . 28 15 27 27 . . . . . 9 11 5 Leg 1 | . . . . . . . . . 17 1 . . Wheel 1 | . . 12 . . . . . . . . . . Device 4 | . 14 2 . . 5 4 5 4 8 5 5 5 Storage 8 | . 14 14 14 14 5 4 . . . . 2 . Processor 4 | . . . . . 23 17 11 9 7 13 4 . Protection 8 | . . 11 13 14 2 . . . 9 7 5 4 Energy Gun 1 | . 8 4 . . . . . . . 2 . . Energy Cannon 4 | . . . 14 8 . . . . 3 . 1 5 Ballistic Gun 14 | . 19 23 14 19 8 . . . 8 9 9 . Peak Build Rating 127 | 7 8 19 21 22 86 78 12 31 120 127 123 52 Average Rating 39 | 5 7 13 19 20 70 43 12 12 84 87 86 43 On Entrance 25 | . 7 7 19 20 22 63 12 12 2 21 120 30 Naked Turns 122 | . . . . . . . . 8 114 . . . Heaviest Build 133 | 13 30 42 43 43 32 29 1 1 79 127 133 62 Greatest Support 240 | 40 40 40 40 40 40 28 3 12 148 240 215 60 Greatest Overweight (x) 7 | . . 4 4 2 7 7 . . 2 1 2 1 Average Overweight (x) . | . . 2 1 . . . . . . . . 1 Largest Inventory Capacity 15 | 8 15 15 15 15 15 10 5 5 5 5 15 5 Average Capacity 11 | 7 14 15 15 15 10 9 5 5 5 5 9 5 Most Carried 15 | 5 10 15 15 15 15 10 5 5 5 5 9 5 Average Carried 9 | 3 7 10 14 14 10 8 5 4 4 4 4 3 Final Capacity 15 | 8 15 15 15 15 10 5 5 5 5 5 5 5 Final Carried 15 | 5 7 15 15 15 10 5 5 5 5 5 3 3 Class Distribution -------------------- 76% | Mutant 15% | Scavenger-Tank 3% | Scavenger-Mutant Dominant Class ---------------- Mutant | -10/Materials Mutant | -10/Subcaves Mutant | -8/Recycling Mutant | -8/Scraptown Mutant | -6/Factory Mutant | -5/Factory Mutant | -5/Waste Mutant | -5/Factory Scavenger-Tank | -4/Factory Scavenger-Tank | -4/Waste Scavenger-Tank | -4/Factory Mutant | -4/Upper Caves Resources | -11 -10 -10 -8 -8 -6 -5 -5 -5 -4 -4 -4 -4 ----------- Run | Yrd Mat Sub Rec Scr Fac Fac Was Fac Fac Was Fac Upp Matter Collected 4181 | 270 407 344 193 134 289 . . 190 760 505 1069 20 Remotely . | . . . . . . . . . . . . . Salvage Created 5885 | 211 646 286 119 . 218 . . . 1360 513 2124 408 Parts 258 | 17 38 18 7 . 16 . . . 72 5 75 10 Haulers Intercepted 2 | . . . . . . . . . 1 . 1 . Recyclers Shooed 7 | . . . . . 2 . . . . . 5 . Parts Field Recycled . | . . . . . . . . . . . . . Retrieved Matter . | . . . . . . . . . . . . . Parts Self-Destructed 13 | . . 2 . . . . . . . . . 11 Prevented . | . . . . . . . . . . . . . Kills | -11 -10 -10 -8 -8 -6 -5 -5 -5 -4 -4 -4 -4 ------- Run | Yrd Mat Sub Rec Scr Fac Fac Was Fac Fac Was Fac Upp Combat Hostiles Destroyed 76 | . 14 6 2 . 7 . . . 19 . 24 4 Guns 59 | . 14 6 . . 4 . . . 17 . 18 . Cannons 12 | . . . 2 . . . . . 2 . 4 4 AOE 3 | . . . . . 3 . . . . . . . Classes Destroyed 16 | 2 2 2 . . 3 . . . 4 . 3 . Worker 8 | . . . . . . . . . 1 . 7 . Builder 5 | . . . . . . . . . 2 . 3 . Tunneler 5 | 5 . . . . . . . . . . . . Hauler 2 | . . . . . . . . . 1 . 1 . Recycler 3 | 1 . . . . . . . . 1 . 1 . Mechanic 1 | . . . . . . . . . . . 1 . Watcher 3 | . 2 . . . . . . . . . 1 . Swarmer 11 | . . . . . 3 . . . 4 . . 4 Grunt 30 | . 14 . . . . . . . 3 . 13 . Brawler 1 | . . . . . . . . . . . 1 . Protector 1 | . . . . . . . . . . . 1 . Sentry 4 | . . 1 2 . . . . . . . 1 . Specialist 3 | . . . . . . . . . 1 . 2 . Hunter 7 | . . . . . 1 . . . 3 . 3 . Programmer 14 | . . . . . 3 . . . 8 . 3 . Subdweller 5 | . . 5 . . . . . . . . . . Surgeon 1 | . . . . . . . . . . . 1 . Best Kill Streak 9 | 4 2 1 1 . 4 . . . 5 . 9 4 Combat Bots Only 5 | . 2 1 1 . 4 . . . 5 . 5 4 Max Kills in Single Turn 5 | 2 1 1 1 . 1 . . . 2 . 5 1 Gunslinging 1 | . . . . . . . . . 1 . . . Exploded 1 | . . . . . 1 . . . . . . . Melee . | . . . . . . . . . . . . . Uniques/NPCs Destroyed . | . . . . . . . . . . . . . Combat | -11 -10 -10 -8 -8 -6 -5 -5 -5 -4 -4 -4 -4 -------- Run | Yrd Mat Sub Rec Scr Fac Fac Was Fac Fac Was Fac Upp Hostile Shots Fired 1205 | . 79 35 4 . 257 39 1 40 383 . 314 53 Missed 433 | . 25 8 1 . 122 20 1 11 148 . 81 16 Hits 772 | . 54 27 3 . 135 19 . 29 235 . 233 37 Melee 16 | . . . . . . . . 12 . . 4 . Projectile 756 | . 54 27 3 . 135 19 . 17 235 . 229 37 Critical Strikes 32 | . 2 . . . 1 1 . 7 10 . 11 . Actively Blocked 1 | . . . . . . . . . 1 . . . Part Disruptions 2 | . . . . . 1 . . . 1 . . . Actively Blocked 1 | . . . . . . . . . 1 . . . Damage Taken 13241 | . 720 633 42 . 1986 308 . 619 3531 . 4867 535 Core 2183 | . 65 128 . . 258 91 . 490 473 . 633 45 Absorbed by Shields . | . . . . . . . . . . . . . Reduced by Siege Mode 253 | . . . . . . . . . . . 253 . Redirected to Shielding 110 | . . . . . . . . . 29 . 81 . Ignored by Resistances 46 | . . 8 . . . . . . . . 38 . Regen/Repaired (Parts) 777 | . . . . . . . . . 20 572 185 . Core Remaining (%) 58 | 100 . . . 22 69 . . 41 . . . . Volleys Fired 409 | 9 65 85 4 . 48 . . . 58 8 109 23 Largest 3 | 2 2 2 2 . 2 . . . 3 3 3 2 Hottest 181 | 80 60 80 105 . 55 . . . 181 90 175 175 Shots Fired 824 | 18 129 157 8 . 87 . . . 140 25 232 28 Gun 709 | 18 129 147 4 . 83 . . . 116 25 184 3 Cannon 106 | . . 10 4 . . . . . 24 . 43 25 Launcher 9 | . . . . . 4 . . . . . 5 . Special . | . . . . . . . . . . . . . Kinetic 650 | . 119 120 4 . 83 . . . 116 24 184 . Thermal 162 | 18 10 37 4 . . . . . 24 1 43 25 Explosive 4 | . . . . . 4 . . . . . . . Electromagnetic 8 | . . . . . . . . . . . 5 3 Robot Hit Streak 38 | 2 19 38 6 . 5 . . . 8 7 36 5 Robot Miss Streak 5 | 2 3 2 1 . 3 . . . 5 1 5 5 Penetration Max 2 | . . . . . . . . . 1 . 2 . Secondary Targets 3 | . . . . . . . . . 2 . 1 . Max Gunslinging Chain 1 | . . . . . . . . . 1 . 1 . Shots Hit Robots 436 | 8 87 45 5 . 36 . . . 74 16 149 16 Core Hits 243 | 7 36 14 2 . 19 . . . 43 5 107 10 Critical Kills 13 | . . . . . 1 . . . 6 1 4 1 Critical Parts Destroyed 11 | . 1 . . . 3 . . . 5 1 1 . Critical Strikes 25 | . 1 . . . 4 . . . 11 2 6 1 Meltdown 2 | . . . . . . . . . . . 1 1 Destroy 23 | . 1 . . . 4 . . . 11 2 5 . Melee Attacks 7 | . . . . . 5 2 . . . . . . Impact . | . . . . . . . . . . . . . Slashing 7 | . . . . . 5 2 . . . . . . Piercing . | . . . . . . . . . . . . . Sneak Attacks . | . . . . . . . . . . . . . Combat Hostiles . | . . . . . . . . . . . . . Follow-up Attacks . | . . . . . . . . . . . . . Damage Inflicted 12467 | 98 1076 582 135 . 765 . . . 2586 426 6229 570 Guns 8257 | 98 1076 582 12 . 589 . . . 2053 426 3390 31 Cannons 2196 | . . . 111 . . . . . 366 . 1180 539 Explosions 1977 | . . . . . 175 . . . 167 . 1635 . Melee . | . . . . . . . . . . . . . Ramming 37 | . . . 12 . 1 . . . . . 24 . Kinetic 7842 | . 998 388 12 . 589 . . . 2053 412 3390 . Thermal 3805 | 98 78 194 111 . . . . . 533 14 2238 539 Explosive 175 | . . . . . 175 . . . . . . . Electromagnetic 608 | . . . . . . . . . . . 577 31 Impact . | . . . . . . . . . . . . . Slashing . | . . . . . . . . . . . . . Piercing . | . . . . . . . . . . . . . Highest Corruption 17 | . . . . . 1 1 7 8 8 8 17 17 Average Corruption 8 | . . . . . 1 1 4 7 5 8 10 17 Corruption Purged . | . . . . . . . . . . . . . Corruption Blocked 5 | . . . . . 5 . . . . . . . Effects 155 | . . . . . 3 . 1 6 12 58 57 18 Message Errors 45 | . . . . . . . . 1 5 17 18 4 Matter Fused 28 | . . . . . . . . 2 2 10 9 5 Heat Flow Errors 23 | . . . . . . . 1 1 2 9 8 2 Energy Discharges 15 | . . . . . 2 . . 1 1 5 4 2 Parts Rejected 3 | . . . . . . . . . . . 3 . Parts Fused 2 | . . . . . 1 . . . . . 1 . Data Loss (minor) 17 | . . . . . . . . 1 1 10 4 1 Data Loss (major) 5 | . . . . . . . . . 1 2 2 . Misfires 8 | . . . . . . . . . . 3 2 3 Alerts 3 | . . . . . . . . . . 2 1 . Misdirections 2 | . . . . . . . . . . . 1 1 Weapon Failures 4 | . . . . . . . . . . . 4 . Overload Shots . | . . . . . . . . . . . . . Overflow Damage 247 | . . . . . . . . . 39 . 186 22 Projectiles 111 | . . . . . . . . . . . 89 22 Explosions 136 | . . . . . . . . . 39 . 97 . Melee . | . . . . . . . . . . . . . Knockbacks . | . . . . . . . . . . . . . Impact . | . . . . . . . . . . . . . Kinetic . | . . . . . . . . . . . . . Secondary . | . . . . . . . . . . . . . Self-Inflicted Damage 199 | . . . . . 30 . . . 95 . 74 . Shots 9 | . . . . . 1 . . . 1 . 7 . Rammed 8 | . . . 3 . 2 . . . . . 3 . Targets Rammed 10 | . . . 3 . 2 . . . . . 5 . Kicked 2 | . . . . . . . . . . . 2 . Crushed . | . . . . . . . . . . . . . Highest Temperature 498 | 72 33 24 147 . . 29 83 227 498 239 436 183 Average Temperature 100 | 26 9 13 75 . . 16 43 127 159 87 106 58 Received Heat Transfer 2123 | . 453 162 18 . 201 9 . 45 227 . 1008 . Effects 14 | . . . . . . . . . 12 . 2 . Shutdowns 3 | . . . . . . . . . 2 . 1 . Energy Bleed 3 | . . . . . . . . . 3 . . . Interference 2 | . . . . . . . . . 2 . . . Damage (minor) 2 | . . . . . . . . . 1 . 1 . Damage (major) 4 | . . . . . . . . . 4 . . . Siege Activations 5 | . . . . . . . . . . . 5 . Total Turns 83 | . . . . . . . . . . . 83 . Longest Duration 48 | . . . . . . . . . . . 48 . Martial Activations . | . . . . . . . . . . . . . Shielding Activations . | . . . . . . . . . . . . . Robots Disrupted 1 | . . . . . . . . . . . 1 . Combat Hostiles 1 | . . . . . . . . . . . 1 . Robots Corrupted 1 | . . . . . . . . . . . 1 . Combat Hostiles 1 | . . . . . . . . . . . 1 . Parts Fried 3 | . . . . . . . . . . . 3 . Impact Corruptions . | . . . . . . . . . . . . . Robots Melted 2 | . . . . . . . . . . . 1 1 Combat Hostiles 2 | . . . . . . . . . . . 1 1 Parts Melted 4 | . 1 . . . . . . . . . 3 . Heat Transferred 3447 | 225 175 450 148 . . . . . 600 37 1257 555 Parts Sabotaged 3 | . . . . . . . . . . . 3 . Parts Stolen . | . . . . . . . . . . . . . Parts Stripped . | . . . . . . . . . . . . . Power Chain Reactions 1 | . . . . . . . . . . . 1 . Alert | -11 -10 -10 -8 -8 -6 -5 -5 -5 -4 -4 -4 -4 ------- Run | Yrd Mat Sub Rec Scr Fac Fac Was Fac Fac Was Fac Upp Maximum Alert Level 5 | . . . . . 1 1 . . 2 . 5 . Low Security (%) 83 | 100 100 . 100 . 87 78 100 100 83 100 19 . Level 1 5 | . . . . . 12 21 . . 16 . 11 . Level 2 . | . . . . . . . . . . . . . Level 3 . | . . . . . . . . . . . 1 . Level 4 1 | . . . . . . . . . . . 11 . Level 5 8 | . . . . . . . . . . . 55 . High Security . | . . . . . . . . . . . . . Max Security . | . . . . . . . . . . . . . Peak Influence 2392 | 15 103 . 48 . 380 215 33 30 404 105 2392 . Initial 186 | . . . . . . 186 33 9 9 105 . . Average 269 | 1 34 . 5 . 117 165 26 1 91 6 1482 . Influence Increases 5844 | 30 449 20 177 . 708 144 . 30 817 . 3364 105 Destroy 0b10 Robot/C 2000 | . 280 20 40 . 140 . . . 420 . 1020 80 Destroy 0b10 Robot/NC 200 | 30 10 . . . . . . . 25 . 120 15 Destroy Leader 416 | . 84 . . . 50 . . . 72 . 200 10 Allied During Kill 843 | . . . . . . . . . 5 . 838 . Successful Hack 55 | . 28 . 17 . 5 5 . . . . . . Select Force Hacks 120 | . . . 120 . . . . . . . . . Disable Machine 750 | . 15 . . . 15 . . . 90 . 630 . Anti-Garrison Action 150 | . . . . . . . . . . . 150 . Destroy Structure 500 | . 2 . . . 18 4 . . 100 . 376 . Partial Spotted 75 | . . . . . 75 . . . . . . . Lose Combat Pursuer 735 | . 30 . . . 405 135 . 30 105 . 30 . Influence Decreases 4517 | 30 449 20 177 . 328 428 83 23 536 301 992 1150 Entered New Map 1346 | . . . . . . 194 63 4 11 196 . 878 Time Decay 2381 | 30 419 20 177 . 268 214 20 19 355 105 492 262 Lost Part 440 | . 30 . . . 60 20 . . 150 . 170 10 Lost Ally 350 | . . . . . . . . . 20 . 330 . Squads Dispatched 47 | . 4 . . . 10 4 . 2 7 . 20 . Investigation 13 | . 2 . . . 5 3 . . 1 . 2 . Extermination 7 | . . . . . 2 1 . . 3 . 1 . Reinforcement 17 | . 2 . . . 3 . . 2 3 . 7 . Assault 8 | . . . . . . . . . . . 8 . Garrison 2 | . . . . . . . . . . . 2 . Intercept . | . . . . . . . . . . . . . Searches Triggered . | . . . . . . . . . . . . . Construction Impeded 5 | . . . . . 1 . . . 1 . 3 . Haulers Reinforced 5 | . . . . . . . . . 2 . 3 . Active Scanning Responses . | . . . . . . . . . . . . . Cargo Convoy Interrupts 1 | . . . . . . . . . 1 . . . Stealth | -11 -10 -10 -8 -8 -6 -5 -5 -5 -4 -4 -4 -4 --------- Run | Yrd Mat Sub Rec Scr Fac Fac Was Fac Fac Was Fac Upp Distress Signals 16 | . 2 . . . 3 2 . 1 2 . 6 . Communications Jammed . | . . . . . . . . . . . . . Distress Signals . | . . . . . . . . . . . . . Times Spotted 212 | . 23 6 2 . 47 21 4 10 46 . 46 7 Peak Tracking Total 20 | . 3 2 1 . 20 12 5 11 13 . 7 5 Tactical Retreats 22 | . 2 1 . . 8 4 . 1 4 . 2 . Traps | -11 -10 -10 -8 -8 -6 -5 -5 -5 -4 -4 -4 -4 ------- Run | Yrd Mat Sub Rec Scr Fac Fac Was Fac Fac Was Fac Upp Traps Triggered 8 | . 1 2 . . 2 2 . . 1 . . . Indirectly . | . . . . . . . . . . . . . Trap Hack Attempts . | . . . . . . . . . . . . . Triggered . | . . . . . . . . . . . . . Disarmed . | . . . . . . . . . . . . . Reprogrammed . | . . . . . . . . . . . . . Reused . | . . . . . . . . . . . . . Traps Extracted . | . . . . . . . . . . . . . Installed . | . . . . . . . . . . . . . Triggered . | . . . . . . . . . . . . . Most Traps Carried 1 | . . . . 1 1 1 . . . . . . Machines | -11 -10 -10 -8 -8 -6 -5 -5 -5 -4 -4 -4 -4 ---------- Run | Yrd Mat Sub Rec Scr Fac Fac Was Fac Fac Was Fac Upp Machines Disabled 53 | . 1 2 . . 1 . . . 6 . 43 . Max in Single Turn 23 | . 1 1 . . 1 . . . 3 . 23 . Garrison Access 2 | . . . . . 1 . . . . . 1 . Machines Repaired . | . . . . . . . . . . . . . Machines Dismantled . | . . . . . . . . . . . . . Machines Sabotaged . | . . . . . . . . . . . . . Overloaded Fab Kills . | . . . . . . . . . . . . . Hacking | -11 -10 -10 -8 -8 -6 -5 -5 -5 -4 -4 -4 -4 --------- Run | Yrd Mat Sub Rec Scr Fac Fac Was Fac Fac Was Fac Upp Machines Accessed 44 | . 7 2 10 3 10 8 . . 2 . 2 . Terminals 22 | . 7 . 6 . 2 6 . . . . 1 . Fabricators 1 | . . . . . 1 . . . . . . . Repair Stations 1 | . . . . . . . . . 1 . . . Recycling Units 14 | . . . 4 . 6 2 . . 1 . 1 . Scanalyzers . | . . . . . . . . . . . . . Garrison Access 1 | . . . . . 1 . . . . . . . Total Hacks 100 | . 18 5 23 21 15 13 . . 2 . 3 . Successful 72 | . 11 5 18 21 8 6 . . 1 . 2 . Failed 28 | . 7 . 5 . 7 7 . . 1 . 1 . Catastrophic 4 | . 1 . . . . 1 . . 1 . 1 . Database Lockouts . | . . . . . . . . . . . . . Manual 56 | . 13 . 19 . 11 9 . . 1 . 3 . Terminals 52 | . 18 . 18 . 4 10 . . . . 2 . Fabricators 3 | . . . . . 3 . . . . . . . Repair Stations 1 | . . . . . . . . . 1 . . . Recycling Units 17 | . . . 5 . 7 3 . . 1 . 1 . Scanalyzers . | . . . . . . . . . . . . . Garrison Access 1 | . . . . . 1 . . . . . . . Terminal Hacks 32 | . 1 5 3 21 . 2 . . . . . . Record 25 | . . 4 . 20 . 1 . . . . . . Prototype ID Bank 3 | . 1 . 2 . . . . . . . . . Open DSF 1 | . . . . . . 1 . . . . . . Zone Layout 1 | . . . 1 . . . . . . . . . Proto ID Catalog 2 | . . 1 . 1 . . . . . . . . Fabricator Hacks 1 | . . . . . 1 . . . . . . . Network Status 1 | . . . . . 1 . . . . . . . Repair Station Hacks . | . . . . . . . . . . . . . Recycling Unit Hacks 1 | . . . . . . 1 . . . . . . Retrieve Matter 1 | . . . . . . 1 . . . . . . Scanalyzer . | . . . . . . . . . . . . . Garrison Access Hacks 1 | . . . . . 1 . . . . . . . Seal Access 1 | . . . . . 1 . . . . . . . Unauthorized Hacks 37 | . 10 . 15 . 6 3 . . 1 . 2 . Terminals 23 | . 10 . 10 . 1 1 . . . . 1 . Botnet 10 | . 3 . 4 . 1 1 . . . . 1 . Skim 13 | . 7 . 6 . . . . . . . . . Fabricators . | . . . . . . . . . . . . . Repair Stations . | . . . . . . . . . . . . . Recycling Units 14 | . . . 5 . 5 2 . . 1 . 1 . Reject 1 | . . . 1 . . . . . . . . . Tunnel 4 | . . . 4 . . . . . . . . . Fedlink 8 | . . . . . 5 2 . . . . 1 . Scraphulk 1 | . . . . . . . . . 1 . . . Scanalyzers . | . . . . . . . . . . . . . Garrison Access . | . . . . . . . . . . . . . Data Cores Recovered 1 | . . . . . . . . . . . 1 . Used . | . . . . . . . . . . . . . Hacking Detections 20 | . 5 . 6 . 4 4 . . 1 . . . Full Trace Events 3 | . 1 . 1 . . 1 . . . . . . Feedback Events . | . . . . . . . . . . . . . Feedback Blocked . | . . . . . . . . . . . . . Robot Schematics Acquired . | . . . . . . . . . . . . . Robots Built . | . . . . . . . . . . . . . Authchips . | . . . . . . . . . . . . . Time . | . . . . . . . . . . . . . Total Robot Build Rating . | . . . . . . . . . . . . . Part Schematics Acquired . | . . . . . . . . . . . . . Parts Built . | . . . . . . . . . . . . . Authchips . | . . . . . . . . . . . . . Time . | . . . . . . . . . . . . . Total Part Build Rating . | . . . . . . . . . . . . . Parts Repaired . | . . . . . . . . . . . . . Time . | . . . . . . . . . . . . . Parts Recycled . | . . . . . . . . . . . . . Recycled Matter . | . . . . . . . . . . . . . Retrieved Matter . | . . . . . . . . . . . . . Retrieved Components . | . . . . . . . . . . . . . Parts Scanalyzed . | . . . . . . . . . . . . . Part Schematics Acquired . | . . . . . . . . . . . . . Parts Damaged . | . . . . . . . . . . . . . Bothacking | -11 -10 -10 -8 -8 -6 -5 -5 -5 -4 -4 -4 -4 ------------ Run | Yrd Mat Sub Rec Scr Fac Fac Was Fac Fac Was Fac Upp Used RIF Installer . | . . . . . . . . . . . . . Robots Hacked . | . . . . . . . . . . . . . Non-combat . | . . . . . . . . . . . . . Combat . | . . . . . . . . . . . . . Robot Hacks Applied . | . . . . . . . . . . . . . Relay Couplers Released 2 | . . . . . . . . . . . 2 . Machine Destruction 2 | . . . . . . . . . . . 2 . Fabnet Peak Effective % . | . . . . . . . . . . . . . Robots Rewired . | . . . . . . . . . . . . . Allies Hacked 1 | . . . . . . . . . . . 1 . Hacks Repelled . | . . . . . . . . . . . . . Allies | -11 -10 -10 -8 -8 -6 -5 -5 -5 -4 -4 -4 -4 -------- Run | Yrd Mat Sub Rec Scr Fac Fac Was Fac Fac Was Fac Upp Total Allies 21 | . . . . . . . . . 1 20 . . Largest Group 20 | . . . . . . . . . 1 20 20 . Highest-Rated Group 680 | . . . . . . . . . 123 680 674 . Highest-Rated Ally 123 | . . . . . . . . . 123 50 50 . Total Orders . | . . . . . . . . . . . . . Ally Attacks 237 | . . . . . . . . . 7 . 230 . Total Damage 6042 | . . . . . . . . . 164 . 5878 . Kills 41 | . . . . . . . . . 2 . 39 . Allies Corrupted . | . . . . . . . . . . . . . Allies Melted . | . . . . . . . . . . . . . Intel | -11 -10 -10 -8 -8 -6 -5 -5 -5 -4 -4 -4 -4 ------- Run | Yrd Mat Sub Rec Scr Fac Fac Was Fac Fac Was Fac Upp Active Infowar (turns) 5519 | 18 1547 431 . . 404 381 43 152 293 1799 451 . Optics 2708 | . . 165 . . . . . . 293 1799 451 . Sensors 576 | . . . . . . 381 43 152 . . . . Seismic 1831 | 18 1547 266 . . . . . . . . . . Decoding 376 | . . . . . 376 . . . . . . . Cloaking 56 | . . . . . 56 . . . . . . . Robot Analysis Total . | . . . . . . . . . . . . . Derelict Logs Recovered 4 | . . . . 4 . . . . . . . . Drone Launches . | . . . . . . . . . . . . . Drone Recoveries . | . . . . . . . . . . . . . Decoded 0b10 Intel 8 | . . . . . 8 . . . . . . . Garrisons 2 | . . . . . 2 . . . . . . . Patrols 2 | . . . . . 2 . . . . . . . Guards 4 | . . . . . 4 . . . . . . . Exploration | -11 -10 -10 -8 -8 -6 -5 -5 -5 -4 -4 -4 -4 ------------- Run | Yrd Mat Sub Rec Scr Fac Fac Was Fac Fac Was Fac Upp Turns Passed 15712 | 151 1547 2253 1810 3607 714 443 43 181 1135 1799 1459 570 Spaces Moved 9012 | 73 478 1532 693 1783 984 776 66 309 551 919 619 229 Core 695 | 9 . . . . . 60 66 293 199 16 52 . Treads 4294 | 64 478 174 683 1603 25 . . . . 512 526 229 Legs 393 | . . . . . . . . . 352 . 41 . Wheels 1548 | . . 1358 10 180 . . . . . . . . Hover 391 | . . . . . . . . . . 391 . . Flight 1691 | . . . . . 959 716 . 16 . . . . Fastest Speed 15 | 50 160 110 140 120 40 15 50 21 50 50 50 225 Average Speed 137 | 146 160 127 243 199 47 50 50 48 95 134 164 225 Slowest Speed 310 | 160 160 240 245 245 310 310 50 50 183 206 260 232 Overloaded Moves 14 | . . . . . . 9 . 5 . . . . Propulsion Burnouts . | . . . . . . . . . . . . . Robots Hopped 16 | . . . . . 11 4 . 1 . . . . Potential Cave-ins 3 | . . 3 . . . . . . . . . . Cave-ins Triggered 1 | . . . . . . . . . . . 1 . Exploration Rate (%) 49 | 4 84 78 97 88 36 26 68 13 16 96 21 22 Regions Visited 12 Branch Regions 4 Pre-discovered Areas 9 | . . 1 6 1 1 . . . . . . . Known Exits Taken 3 | . 1 . . . 1 . . 1 . . . . Unknown Exits Taken 5 | 1 . 1 1 1 . . . . . . 1 . Scrap Searched 12 | . . 7 . 4 . . . . . . . 1 Spaces Dug 20 | . . 9 . . 4 2 . . 1 . 4 . Terrain Destroyed 227 | . . 9 . . 17 2 . . 41 1 147 10 Melee 6 | . . . . . 4 2 . . . . . . Projectile 85 | . . 9 . . . . . . 20 1 45 10 AOE 135 | . . . . . 13 . . . 21 . 101 . Terrain Rammed . | . . . . . . . . . . . . . Walls Destroyed . | . . . . . . . . . . . . . Machines Disabled . | . . . . . . . . . . . . . Actions | -11 -10 -10 -8 -8 -6 -5 -5 -5 -4 -4 -4 -4 --------- Run | Yrd Mat Sub Rec Scr Fac Fac Was Fac Fac Was Fac Upp Total 11580 | 98 1131 1684 806 1832 1135 822 75 338 1053 1476 872 258 Wait 1769 | . 572 17 96 29 43 27 10 23 386 475 91 . Move 8972 | 72 477 1531 692 1782 963 768 65 306 551 918 618 229 Hop 15 | . . . . . 10 4 . 1 . . . . Pick Up 114 | 10 8 18 1 9 13 6 . 3 11 16 16 3 Fast Attach 49 | 2 . . 2 . 12 . . . 22 8 3 . Attach 75 | 5 4 4 . 1 10 8 . 4 6 12 18 3 Detach 14 | . . . . . 5 4 . 1 . 1 3 . Swap 40 | . 3 18 3 4 4 . . . 3 3 2 . Drop 97 | . 2 11 5 7 21 3 . . 16 25 7 . Fire 409 | 9 65 85 4 . 48 . . . 58 8 109 23 Melee 7 | . . . . . 5 2 . . . . . . Ram 1 | . . . . . 1 . . . . . . . Kick 2 | . . . . . . . . . . . 2 . Crush 6 | . . . 3 . . . . . . . 3 . Escape Stasis . | . . . . . . . . . . . . . Rewire 10 | . . . . . . . . . . 10 . . Trap . | . . . . . . . . . . . . . Miscellaneous . | . . . . . . . . . . . . . Route ------- -11/Scrapyard -10/Materials (discovered 6 exits: *Mat x3 / [*Min x2] / *Sub) -10/Subcaves (discovered 3 exits: *Mat x2 / *Rec) -8/Recycling (discovered 2 exits: *Fac / *Scr) -8/Scraptown (discovered 2 exits: *Fac x2) -6/Factory (discovered 4 exits: *Fac x2 / *Low x2) -5/Factory -5/Waste -5/Factory -4/Factory -4/Waste -4/Factory -4/Upper Caves History --------- Turn | Location | Event 5 | -11/Scrapyard | Discovered new exit (range 15) 152 | -11/Scrapyard | Entered Materials 343 | -10/Materials | Build established: Mutant 388 | -10/Materials | Discovered new exit (range 15) 472 | -10/Materials | Discovered new exit (range 5) 612 | -10/Materials | Discovered new exit (range 3) 861 | -10/Materials | Discovered new exit (range 10) 1259 | -10/Materials | Identified exit to Subcaves 1259 | -10/Materials | Identified exit to Materials 1324 | -10/Materials | Learned Storage security intel 1380 | -10/Materials | Learned Storage trap positions 1488 | -10/Materials | Learned Storage stockpile data 1563 | -10/Materials | Learned Storage stockpile data 1699 | -10/Materials | Entered Subcaves 1700 | -10/Subcaves | Identified exit to Materials 1993 | -10/Subcaves | Core integrity fell below 50% 2027 | -10/Subcaves | Lost 4 parts (1p1n2u) 2857 | -10/Subcaves | Disturbed a concealed Subdweller 3062 | -10/Subcaves | Shifting Twisted Machinery released Flamer 3066 | -10/Subcaves | Visited Clippyterm 3070 | -10/Subcaves | Learned location of Section 7 (-2) 3087 | -10/Subcaves | Shifting Twisted Machinery released Battle Rifle 3393 | -10/Subcaves | Visited 4L-MR0's lab 3424 | -10/Subcaves | Found Flightbrick 3707 | -10/Subcaves | A swath of the cavern ceiling suddenly collapsed 3915 | -10/Subcaves | Ambushed by Subdweller buried in earth 3948 | -10/Subcaves | Discovered new exit (range 4) 3952 | -10/Subcaves | Entered Recycling 4130 | -8/Recycling | Scanned before Scraplab entrance 4164 | -8/Recycling | Entered Scraplab 4184 | -8/Recycling | Discovered new exit (range 2) 5068 | -8/Recycling | Learned Storage terminal intel 5124 | -8/Recycling | Learned 2 Lower Caves zone layouts 5170 | -8/Recycling | Learned 2 Lower Caves zone layouts 5205 | -8/Recycling | Learned Storage security intel 5232 | -8/Recycling | Learned 2 Lower Caves zone layouts 5270 | -8/Recycling | Learned location of Lower Caves (-6) 5290 | -8/Recycling | Discovered new exit (range 16) 5371 | -8/Recycling | Learned Factory recycling unit intel 5762 | -8/Recycling | Entered Scraptown 5868 | -8/Scraptown | Heard Great Nut preacher, LISTEN AND RECITE! 6000 | -8/Scraptown | Visited Fellowship of the Rings 6066 | -8/Scraptown | Visited TADAMA 6664 | -8/Scraptown | Discovered new exit (range 5) 6845 | -8/Scraptown | Scanned Subdweller tech in exchange for log data 6855 | -8/Scraptown | Learned Research garrison access intel 6858 | -8/Scraptown | Learned location of Warlord (-4) 6926 | -8/Scraptown | Visited IN-MT5's Study 6961 | -8/Scraptown | Visited Cyclists 7027 | -8/Scraptown | Visited Assassins FH 7066 | -8/Scraptown | Visited UFD Registry 7066 | -8/Scraptown | Registered with UFD as "Phaserunner" 7122 | -8/Scraptown | Visited Chapter 10 7157 | -8/Scraptown | Visited Abandonware Association 7213 | -8/Scraptown | Learned abandonware demo "OVRCLOCK.EXE" 7277 | -8/Scraptown | Visited Infowarlord's Domain 7323 | -8/Scraptown | Visited Botcube Research 7357 | -8/Scraptown | Visited Analyses Database 7392 | -8/Scraptown | Visited A0-MCA Data Center 7428 | -8/Scraptown | Visited Junk Repository 7507 | -8/Scraptown | Visited Science Guys 7654 | -8/Scraptown | Visited Scrap Suit Storage 7786 | -8/Scraptown | Delivered Scrap Shield to a Scientist 7922 | -8/Scraptown | Given a B+ rating by A0-MCA 7927 | -8/Scraptown | Found A0-MCA's Component Scanner 8080 | -8/Scraptown | Learned abandonware demo "KABOOM.EXE" 8080 | -8/Scraptown | Learned abandonware demo "POISON.EXE" 8341 | -8/Scraptown | Found Botcube 9027 | -8/Scraptown | Discovered new exit (range 3) 9270 | -8/Scraptown | Met Optimus 9270 | -8/Scraptown | Accepted into 0bPrime 9369 | -8/Scraptown | Entered Factory 9369 | -6/Factory | Evolved 8 slots: Propulsion x2, Utility x5, Weapon x1 9370 | -6/Factory | Identified exit to Lower Caves 9371 | -6/Factory | Loaded intel: 8 recycling unit locations 9430 | -6/Factory | Attached Flightbrick, gained temporary slots: Utility x3 9668 | -6/Factory | Build established: Derelict-Mutant 9697 | -6/Factory | Discovered new exit (range 7) 9699 | -6/Factory | Identified exit to Factory 9801 | -6/Factory | Lost 4 parts (1p2u1w) 9975 | -6/Factory | Spotted B-75 Beast 9979 | -6/Factory | Loaded intel: 8 recycling unit locations 9979 | -6/Factory | Discovered exit to Factory (range 12) 9986 | -6/Factory | Learned location of Protoforge (-2) 9996 | -6/Factory | Build established: Mutant 10083 | -6/Factory | Entered another Factory area 10083 | -5/Factory | Evolved 2 slots: Propulsion x1, Utility x1 10204 | -5/Factory | Discovered new exit (range 5) 10206 | -5/Factory | Identified exit to Factory 10331 | -5/Factory | Loaded intel: 8 recycling unit locations 10526 | -5/Factory | Sucked down chute 10526 | -5/Factory | Entered Waste 10538 | -5/Waste | Spotted C-40 Crusher 10539 | -5/Waste | Spotted C-40 Crusher 10541 | -5/Waste | EMP discharged 10554 | -5/Waste | Spotted C-40 Crusher 10556 | -5/Waste | Spotted C-40 Crusher 10557 | -5/Waste | Spotted C-40 Crusher 10562 | -5/Waste | Discovered new exit (range 16) 10569 | -5/Waste | Identified exit to Factory 10569 | -5/Waste | Entered Factory 10742 | -5/Factory | Discovered exit to Factory (range 16) 10743 | -5/Factory | Core integrity fell below 50% 10750 | -5/Factory | Entered another Factory area 10750 | -4/Factory | Evolved 2 slots: Power x1, Propulsion x1 10751 | -4/Factory | Identified exit to Armory 10853 | -4/Factory | Scraphulk reinforcements arrived 10957 | -4/Factory | Found Scrap Suit 11211 | -4/Factory | Build established: Scavenger-Tank 11773 | -4/Factory | Build established: Scavenger-Gunner 11780 | -4/Factory | Cargo convoy interrupted 11885 | -4/Factory | Sucked down chute 11885 | -4/Factory | Entered Waste 11886 | -4/Waste | Joined by Warlord forces that had cleared the area 11914 | -4/Waste | Lost 12 parts (1p5n3u3w) 12119 | -4/Waste | Discovered new exit (range 23) 12201 | -4/Waste | Build established: Mutant 12669 | -4/Waste | Build established: Scavenger-Tank 12998 | -4/Waste | Build established: Scavenger-Mutant 12999 | -4/Waste | Found Gamma Bomb Array 13085 | -4/Waste | Found Damper Plating 13592 | -4/Waste | Build established: Scavenger-Tank 13684 | -4/Waste | Entered Factory 13684 | -4/Factory | Accompanied by 20 allies 13923 | -4/Factory | Discovered new exit (range 22) 14102 | -4/Factory | Loaded intel: 8 recycling unit locations 14184 | -4/Factory | First assault squad dispatched 14208 | -4/Factory | Garrison activated, responded to threat 14234 | -4/Factory | Lost 9 allies 14360 | -4/Factory | Crushed by falling debris 14382 | -4/Factory | Lost 6 allies 14561 | -4/Factory | System corruption reached 10% 14587 | -4/Factory | Core integrity fell below 50% 14624 | -4/Factory | Lost 4 parts (1n2u1w) 14729 | -4/Factory | Lost 8 parts (1p4n1u2w) 14842 | -4/Factory | Core integrity fell below 20% 14947 | -4/Factory | Build established: Mutant 15143 | -4/Factory | Entered Upper Caves 15145 | -4/Upper Caves | UFD Scientist delivered a prototype 15166 | -4/Upper Caves | Found Prototype Protection 15167 | -4/Upper Caves | Identified Enh. Scrap Shield 15713 | -4/Upper Caves | Destroyed by H-77 Assassin with High-powered Shotgun Last Messages --------------- 15387_ XC-QGF(M) destroyed. 15392_ System corrupted: Matter fused (-5). 15393_ Acquired Imp. Medium Treads. 15397_ Acquired Arc Thrower. 15398_ Acquired 5 matter. 15400_ IO-5E5(g) destroyed. 15418_ Destroyed Field Laser. 15422_ G-67 Veteran destroyed. 15443_ System corrupted: Heat flow error (+142). 15532_ System corrupted: Matter fused (-8). 15555_ System corrupted: Matter fused (-7). 15578_ System corrupted: Matter fused (-9). 15640_ System corrupted: Energy discharge (-136). 15657_ System corrupted: Energy discharge (-119). 15707_ Penetrated by Slug. 15708_ System corrupted: FCS attempts to trigger Arc Thrower. 15708_ System corrupted: Arc Thrower misfires. 15710_ Penetrated by Slug. 15710_ Arc Thrower destroyed. 15710_ Slug penetrates Wall. Map ----- +----------------------------------------------------+ | ?????????????????????????? ???????# | | ???????????????????????????? ?####??# | | ????????????????????????????? ## ##?### ## # | | ??????????????????????????????# #???# ####### | | ???????????????????????????????# #?### "###?## | | ????????????????????? ????????# #?# %"" #?# | | ?????????????????????# ???????# ### % ### | | ????????????????# ???#$ ???????## | | ?????????????? ??# ????????### %% | | ?????????????? ### ??????????### | | ????????????? ###????????#"# ##### | | ????????????? ????????### ##???# | | ????????????? ?????##### #???## | | ?????????????# ????## #?### | | ?????????????# ???## "#?# | | ??????????????# ???# ##?## | | ??????????????? #???# ## ##### | | ??????????????????# ##### ###### | | ???????????????????# ##???## | | ????????????????????# #????### | | ????????????????????## ###### ##??????## | | ?????????????????????## ##????################## | | ???????????? ##?????## ##??????????# ##?## | | ?????????? ???# ????????????# #### ### | | ?????????? ## ############# #??# ## | | ?????????????????# @ #??## | | ?????????????????## #???### | | ??????????????????### ###############?????# # | | ????????????????????# ????????????????????# ## | | ???????????????????#h ????????????????????####? | | ?????????????????? h ????????????????????????? | | ????????????????? ?????????????????????????? | | ????????????????########?????????????????????????? | | ?????????????????????????????????????????????????? | | ?????????????????????????????????????????????????? | | ?????????????????????????????????????????????????? | | ?????????????????????????????????????????????????? | | ?????????????????????????????????????????????????? | | ?????????????????????????????????????????????????? | | ?????????????????????????????????????????????????? | | ?????????????????????????????????????????????????? | | ?????????????????????????????????????????????????? | | ?????????????????????????????????????????????????? | | ?????????????????????????????????????????????????? | | ?????????????????????????????????????????????????? | | ?????????????????????????????????????????????????? | | ?????????????????????????????????????????????????? | | ?????????????????????????????????????????????????? | | | | | +----------------------------------------------------+ Best States ------------- Heat Dissipation 97 Energy Generation 45 Energy Capacity 600 Matter Stores 300 Matter Capacity 300 Sight Range 23 Robot Scan Range 15 Terrain Scan Density 10 Cloak Strength 2 Additional Mass Support 25 Corruption Block 8 Armor Coverage 3200 Resistance: KI 10 Resistance: TH 10 Resistance: EM 90 Propulsion Shielding 66 Evasion (%) 70 Melee Accuracy 12 Target Analysis 8 Core Analysis 6 Recoil Reduction 6 Offensive Hacking 10 Item Schematics ----------------- None Robot Schematics ------------------ None Fabricated ------------ Nothing Repaired ---------- Nothing Alien Tech Used ----------------- None Achievements -------------- None Challenges ------------ None Game ------ Seed VampiricBombardmentBox Manual? 0 Play Time 01:55:37 Cumulative 127.7 hours Start 2025.08.12 @ 08:56:37 End 2025.08.12 @ 11:51:07 Sessions 1 Manual Loads 0 Difficulty Rogue Special Mode None Game No. 190 Rogue 190 Adventurer 0 Explorer 0 Win Type - Total 1 Types 1/0/0/0/0/0/0/0/0/0 Lore% 69 Gallery% 61 Achievement% 52 Wizard Run 0 Options --------- Layout 0 ASCII 0 Keyboard 0 Movement Mouse Keybinds 0 Fullscreen 1 Font 16/SmallcapsGlow Map View 75x55 Zoom Use 0% Tactical HUD 1 Map Filters NONE Filters NONE Steam 1 RUN: 3f6a23f9-3b36-4c58-baf8-e9641e7fb564